bitfinex/quotes_ETHUSD_20250803
["timestamp","ask_amount","ask_price","bid_price","bid_amount"]
[1754254550243,0.92327265,3500.1,3499.7,0.1432]
[1754254550537,0.9305,3500.0,3499.8,4.347]
[1754254550695,1.5640403,3500.4,3499.7,4.347]
[1754254550891,0.9305,3499.9,3499.7,4.347]
[1754254551244,0.4942,3499.8,3499.7,4.347]
[1754254551709,0.9305,3499.8,3499.7,4.347]
[1754254557939,0.4942,3499.8,3499.7,4.347]
[1754254558141,0.001,3500.1,3499.7,4.347]
[1754254558328,0.4942,3500.0,3499.7,4.347]
[1754254558504,0.4373,3500.1,3499.7,4.347]
[1754254558703,0.4942,3499.9,3499.7,4.347]
[1754254558905,0.8935,3499.8,3499.6,4.347]
[1754254559214,0.4573,3499.7,3499.6,4.347]
[1754254560946,0.8935,3499.7,3499.6,0.002]
[1754254561309,7.61051744,3499.7,3499.6,0.002]
[1754254562734,5.61786996,3499.7,3499.6,0.002]
[1754254563412,5.18166996,3499.7,3499.6,0.002]
[1754254563921,5.61786996,3499.7,3499.6,0.002]
[1754254564620,4.72436996,3499.7,3499.6,0.002]
[1754254565348,1.72436996,3499.7,3499.6,0.002]
[1754254565934,1.72436996,3499.7,3499.6,0.4576]
[1754254566435,1.72436996,3499.7,3499.6,0.002]
[1754254566740,2.18166996,3499.7,3499.6,0.002]
[1754254567244,1.72436996,3499.7,3499.6,0.4576]
[1754254567749,1.72436996,3499.7,3499.6,0.002]
[1754254568244,1.72436996,3499.7,3499.6,0.4576]
[1754254568847,1.72436996,3499.7,3499.6,0.002]
[1754254571616,2.18166996,3499.7,3499.6,0.002]
[1754254572174,1.72436996,3499.7,3499.6,0.002]
[1754254572727,2.18166996,3499.7,3499.6,0.002]
[1754254573118,2.61786996,3499.7,3499.6,0.002]
[1754254573446,2.18166996,3499.7,3499.6,0.002]
[1754254574250,1.72436996,3499.7,3499.6,0.002]
[1754254576262,1.72436996,3499.7,3499.6,1.50094469]
[1754254576758,1.72436996,3499.7,3499.6,1.61557]
[1754254581473,0.001,3500.1,3499.6,1.61557]
[1754254581474,0.001,3500.1,3499.6,5.16557]
[1754254581660,0.001,3500.1,3499.7,4.4785]
[1754254581868,0.001,3500.1,3499.9,0.55]
[1754254582065,0.001,3500.1,3500.0,0.61337873]
[1754254582379,0.001,3500.1,3500.0,1.54187873]
[1754254582546,0.001,3500.1,3500.0,1.68507873]
[1754254583858,0.001,3500.1,3500.0,1.89730804]
[1754254584960,0.001,3500.1,3500.0,1.86873662]
[1754254585483,0.001,3500.1,3500.0,5.44730804]
[1754254586253,0.001,3500.1,3500.0,5.41873662]
[1754254586656,0.001,3500.1,3500.0,9.75873662]
[1754254587069,0.001,3500.1,3500.0,4.94583662]
[1754254587383,0.4583,3500.1,3500.0,8.27923662]
[1754254587754,0.001,3500.1,3500.0,8.27923662]
[1754254588051,0.001,3500.1,3500.0,3.72800731]
[1754254588289,0.4583,3500.1,3500.0,4.4822]
[1754254588492,0.001,3500.1,3500.0,4.4822]
[1754254588659,0.001,3500.1,3500.0,4.339]
[1754254588991,0.001,3500.1,3500.0,4.935]
[1754254589995,0.001,3500.1,3500.0,5.47859722]
[1754254590158,0.001,3500.1,3500.0,5.02579722]
[1754254590588,0.001,3500.1,3500.0,25.73356485]
[1754254590780,0.001,3500.1,3500.0,28.5907077]
[1754254592688,0.001,3500.1,3500.0,12.56814667]
[1754254594174,0.001,3500.1,3500.0,12.57914667]
[1754254598114,1.00946013,3501.1,3500.2,0.55]
[1754254598424,1.00946013,3501.1,3501.0,3.55]
[1754254598584,1.00946013,3501.1,3501.0,11.85929002]
[1754254598784,0.4762,3501.8,3501.2,0.55]
[1754254598972,0.001,3501.8,3501.3,7.93456082]
[1754254599176,0.001,3501.8,3501.3,10.90428202]
[1754254599507,0.001,3501.8,3501.3,12.28590612]
[1754254599824,0.001,3501.8,3501.3,12.14270612]
[1754254599978,0.001,3501.8,3501.3,12.28590612]
[1754254600380,0.001,3501.8,3501.3,12.43088923]
[1754254602411,0.001,3501.8,3501.3,12.54533223]
[1754254603909,0.001,3501.8,3501.3,9.68925021]
[1754254604222,0.001,3501.8,3501.3,12.54433223]
[1754254604513,0.001,3501.8,3501.3,12.40113223]
[1754254604741,0.001,3502.2,3502.0,3.55]
[1754254604887,0.001,3502.2,3502.1,8.57611332]
[1754254605095,0.001,3502.2,3502.1,9.14275903]
[1754254605685,0.001,3502.2,3502.1,9.35581246]
[1754254606626,0.4762,3502.2,3502.1,8.90301246]
[1754254606931,0.4762,3502.2,3502.1,8.90201246]
[1754254607482,0.4762,3502.2,3502.1,9.76023546]
[1754254609014,0.001,3502.2,3502.1,9.76023546]
[1754254609320,0.4762,3502.2,3502.1,9.76023546]
[1754254610428,0.4762,3502.2,3502.1,13.99023546]
[1754254611195,0.4762,3502.2,3502.1,13.98723546]
[1754254611621,0.001,3502.2,3502.1,13.98723546]
[1754254613631,0.4762,3502.2,3502.1,13.98723546]
[1754254615237,0.4762,3502.2,3502.1,5.40423546]
[1754254615439,0.14538284,3505.0,3502.1,5.42227643]
[1754254615440,0.4752,3502.7,3502.1,5.42227643]
[1754254615597,0.4752,3502.7,3502.3,0.55]
[1754254615802,0.4354,3503.0,3502.5,3.55]
[1754254616030,0.4354,3503.0,3502.7,3.55]
[1754254616231,0.4354,3503.0,3502.8,4.38554858]
[1754254616398,1.36778908,3504.3,3502.8,4.38554858]
[1754254616599,0.9106,3502.9,3502.8,4.93554858]
[1754254617031,0.9106,3502.9,3502.8,5.79376458]
[1754254617245,0.9106,3502.9,3502.8,5.765216]
[1754254620503,0.9106,3502.9,3502.8,5.215216]
[1754254620729,0.9106,3502.9,3502.8,4.357]
[1754254621130,0.9106,3502.9,3502.7,0.858238]
[1754254621332,0.001,3503.4,3502.8,4.354]
[1754254621938,0.9286,3503.3,3502.8,4.354]
[1754254622143,0.001,3503.4,3502.8,4.354]
[1754254622440,0.9286,3503.2,3502.8,4.354]
[1754254622830,0.9286,3503.1,3502.8,4.354]
[1754254623142,0.9286,3503.0,3502.8,4.354]
[1754254623328,0.4561,3502.9,3502.8,4.354]
[1754254623907,0.4561,3502.9,3502.8,4.8265]
[1754254624852,0.9286,3502.9,3502.8,4.8265]
[1754254625053,0.9286,3502.9,3502.8,4.8245]
[1754254625345,0.4561,3502.9,3502.8,4.8245]
[1754254625550,0.4561,3502.9,3502.8,4.9669]
[1754254625910,0.9286,3502.9,3502.8,4.9669]
[1754254629228,0.4561,3502.9,3502.8,4.9669]
[1754254631239,0.9286,3502.9,3502.8,4.9669]
[1754254631459,0.4561,3502.9,3502.8,4.9669]
[1754254635262,0.001,3503.4,3502.9,3.55]
[1754254635474,0.001,3503.4,3503.1,0.55]
[1754254635673,0.4571,3503.4,3503.3,0.1424]
[1754254637756,0.9296,3503.4,3503.3,0.1424]
[1754254638352,0.9296,3503.4,3503.3,1.000527]
[1754254638551,0.9296,3503.4,3503.3,4.4884]
[1754254640790,0.9296,3503.4,3503.3,4.347]
[1754254641492,0.9296,3503.4,3502.1,0.21305343]
[1754254641493,16.93191362,3503.4,3502.1,0.21305343]
[1754254641672,2.62179136,3503.3,3502.2,5.205389]
[1754254641878,0.9286,3503.2,3502.2,5.205389]
[1754254642064,0.001,3503.4,3502.2,5.205389]
[1754254642259,0.9286,3503.3,3502.3,0.02855266]
[1754254642486,0.9286,3503.2,3502.3,0.02855266]
[1754254642699,0.9286,3503.1,3502.3,0.55]
[1754254642895,0.4561,3503.0,3502.3,0.55]
[1754254643222,0.4561,3503.0,3502.4,0.02855185]
[1754254643391,0.4561,3503.0,3502.5,4.35]
[1754254643592,0.4561,3503.0,3502.6,0.02855021]
[1754254644130,0.001,3503.4,3502.5,4.35]
[1754254644419,0.4561,3502.9,3502.5,4.35]
[1754254644617,0.9286,3502.9,3502.5,4.35]
[1754254645116,0.4561,3502.8,3502.6,4.351]
[1754254645297,0.4561,3502.8,3502.7,4.351]
[1754254646015,0.9286,3502.8,3502.7,4.351]
[1754254656024,0.9286,3502.8,3502.1,0.002]
[1754254656224,1.69309136,3502.7,3502.2,4.348]
[1754254656724,0.9238,3502.6,3502.2,4.348]
[1754254657229,0.9238,3502.5,3502.1,0.002]
[1754254657638,1.69309136,3502.7,3502.1,0.002]
[1754254657830,0.9238,3502.4,3502.1,0.002]
[1754254658202,0.9238,3502.3,3502.1,0.002]
[1754254658632,0.9238,3502.2,3502.1,0.002]
[1754254659505,0.4808,3502.2,3502.1,0.002]
[1754254659714,0.9238,3502.2,3502.1,0.002]
[1754254660145,0.4808,3502.2,3502.1,0.002]
[1754254662926,0.9238,3502.2,3502.1,0.002]
[1754254663410,19.92611362,3502.2,3502.1,0.002]
[1754254663622,52.69556167,3502.2,3502.1,0.002]
[1754254664513,0.55,3501.9,3501.8,0.002]
[1754254664732,34.902,3501.9,3501.8,0.002]
[1754254664945,35.8258,3501.9,3501.8,0.002]
[1754254665622,5.2788,3501.9,3501.8,0.002]
[1754254665827,7.09914498,3501.9,3501.8,0.002]
[1754254666558,2.74414498,3501.9,3501.8,0.002]
[1754254666729,7.10114498,3501.9,3501.8,0.002]
[1754254670543,37.10114498,3501.9,3501.8,0.002]
[1754254681388,32.30114498,3501.9,3501.8,0.002]
[1754254681813,36.65314498,3501.9,3501.8,0.002]
[1754254682215,32.30114498,3501.9,3501.8,0.002]
[1754254682518,32.30114498,3501.9,3501.8,0.434]
[1754254682519,9.17334498,3501.9,3501.8,0.434]
[1754254682681,7.353,3501.9,3501.8,0.434]
[1754254682876,7.353,3501.9,3501.8,0.002]
[1754254683313,7.8201,3501.9,3501.8,0.002]
[1754254686919,3.4671,3501.9,3501.8,0.002]
[1754254687118,7.8181,3501.9,3501.8,0.002]
[1754254687317,10.24348136,3501.9,3501.8,0.002]
[1754254690810,9.77438136,3501.9,3501.8,0.002]
[1754254690999,7.349,3501.9,3501.8,0.002]
[1754254692346,7.8161,3501.9,3501.8,0.002]
[1754254692970,38.23846683,3501.9,3501.8,0.002]
[1754254693119,38.2485,3501.9,3501.8,0.002]
[1754254698979,37.8161,3501.9,3501.8,0.002]
[1754254699276,41.11674707,3501.9,3501.8,0.002]
[1754254702071,40.21324707,3501.9,3501.8,0.002]
[1754254702262,40.21324707,3501.9,3501.8,0.434]
[1754254703058,42.09510485,3501.9,3501.8,0.434]
[1754254703447,42.09510485,3501.9,3501.8,0.002]
[1754254704474,37.75010485,3501.9,3501.8,0.002]
[1754254704774,42.09510485,3501.9,3501.8,0.434]
[1754254705188,42.09510485,3501.9,3501.8,0.002]
[1754254707012,42.56220485,3501.9,3501.8,0.002]
[1754254711317,43.40020218,3501.9,3501.8,0.002]
[1754254711985,43.82256901,3501.9,3501.8,0.002]
[1754254714128,43.01170485,3501.9,3501.8,0.002]
[1754254718728,43.56170485,3501.9,3501.8,0.002]
[1754254718937,44.37056901,3501.9,3501.8,0.002]
[1754254721122,44.37056901,3501.9,3501.7,0.002]
[1754254721327,39.61454596,3501.8,3501.7,0.002]
[1754254721528,42.83270363,3501.8,3501.7,0.002]
[1754254722045,43.21920096,3501.8,3501.7,0.002]
[1754254722209,33.55,3501.7,3501.6,0.002]
[1754254722405,56.50310498,3501.7,3501.6,0.002]
[1754254722606,58.83403695,3501.7,3501.6,0.002]
[1754254723003,59.64290111,3501.7,3501.4,0.002]
[1754254723242,33.55,3501.5,3501.4,0.002]
[1754254723446,38.27949733,3501.5,3501.4,0.002]
[1754254723739,3.55,3501.1,3500.3,0.4537]
[1754254723945,40.0,3500.8,3500.3,0.4537]
[1754254724109,40.0,3500.6,3500.3,0.4537]
[1754254724302,2.19703936,3500.7,3500.4,0.9074]
[1754254724502,1.22376838,3500.5,3499.6,0.4557]
[1754254724735,4.343,3500.4,3499.6,0.4557]
[1754254725106,2.08459075,3500.3,3499.6,0.4557]
[1754254725307,4.343,3500.2,3499.6,0.4557]
[1754254725742,2.06713179,3500.1,3499.6,0.4557]
[1754254725945,2.06713179,3500.1,3499.9,0.1432]
[1754254726708,2.06713179,3500.1,3500.0,0.6012]
[1754254739173,2.06713179,3500.1,3499.9,0.1432]
[1754254740434,0.4954,3500.0,3499.6,0.1452]
[1754254740633,0.4954,3500.0,3499.7,0.859101]
[1754254740835,2.69447617,3499.9,3499.7,0.859101]
[1754254741330,0.4954,3499.8,3499.7,0.859101]
[1754254741533,0.4954,3499.8,3499.6,0.1452]
[1754254741774,0.4954,3499.7,3499.6,0.1452]
[1754254742083,0.4954,3499.7,3499.6,0.002]
[1754254742282,0.4954,3499.8,3499.6,0.002]
[1754254742976,2.19907617,3499.9,3499.7,0.4523]
[1754254743151,2.19907617,3499.9,3499.8,0.5998]
[1754254743353,2.19907617,3499.9,3499.8,2.36044146]
[1754254744137,2.19907617,3499.9,3499.8,3.21944346]
[1754254747645,2.19907617,3499.9,3499.8,3.76944346]
[1754254754195,2.19907617,3499.9,3499.8,3.62194346]
[1754254761403,2.19907617,3499.9,3499.8,7.96494346]
[1754254762398,2.19907617,3499.9,3499.8,7.51264346]
[1754254763905,2.19907617,3499.9,3499.8,7.96494346]
[1754254764876,1.47750429,3499.9,3499.8,10.96494346]
[1754254765076,0.43286258,3499.9,3499.8,11.11244346]
[1754254767874,0.43286258,3499.9,3499.8,10.96494346]
[1754254771190,0.43286258,3499.9,3499.8,10.51264346]
[1754254774179,0.43286258,3499.9,3499.8,10.95624346]
[1754254776631,0.43286258,3499.9,3499.8,10.51264346]
[1754254778277,0.91306258,3499.9,3499.8,10.51264346]
[1754254779882,0.43286258,3499.9,3499.8,10.51264346]
[1754254780711,0.91306258,3499.9,3499.8,10.51264346]
[1754254784635,0.4802,3499.9,3499.8,10.51264346]
[1754254785637,0.4802,3499.9,3499.8,0.859002]
[1754254785840,0.9531,3499.9,3499.8,5.200002]
[1754254788420,0.9531,3499.9,3499.8,4.341]
[1754254790944,0.9531,3499.9,3499.8,4.343]
[1754254791239,0.9541,3499.9,3499.8,4.343]
[1754254791804,0.9541,3499.9,3499.8,4.293]
[1754254792242,0.9541,3499.9,3499.8,0.002]
[1754254792548,0.9541,3499.9,3499.8,4.343]
[1754254797957,0.9541,3499.9,3499.8,0.002]
[1754254798145,0.9541,3499.9,3499.8,4.343]
[1754254798548,3.58389218,3499.9,3499.8,0.002]
[1754254798723,3.9422814,3499.9,3499.8,0.002]
[1754254799128,36.9422814,3499.9,3499.8,0.002]
[1754254802852,37.36464823,3499.9,3499.8,0.002]
[1754254805380,38.30114556,3499.9,3499.8,0.002]
[1754254806831,42.25664823,3499.9,3499.8,0.002]
[1754254807444,41.8342814,3499.9,3499.8,0.002]
[1754254807646,42.25664823,3499.9,3499.8,0.002]
[1754254807865,42.64314556,3499.9,3499.8,0.002]
[1754254809844,42.25664823,3499.9,3499.8,0.002]
[1754254812469,42.64314556,3499.9,3499.8,0.002]
[1754254813566,40.55,3499.7,3499.6,0.002]
[1754254813758,52.42056069,3499.7,3499.6,0.002]
[1754254814075,52.42056069,3499.7,3499.4,0.002]
[1754254814076,33.0,3499.5,3499.4,0.002]
[1754254814378,37.342,3499.5,3499.4,0.002]
[1754254814680,40.42602505,3499.5,3499.4,0.002]
[1754254814883,5.18402505,3499.5,3499.4,0.002]
[1754254815220,10.33125226,3499.5,3499.4,0.002]
[1754254815482,10.80125226,3499.5,3499.4,0.002]
[1754254816057,11.23125226,3499.5,3499.4,0.002]
[1754254816972,10.80125226,3499.5,3499.4,0.002]
[1754254817171,5.98925226,3499.5,3499.4,0.002]
[1754254817354,5.18402505,3499.5,3499.4,0.6243]
[1754254817558,9.52602505,3499.5,3499.4,0.6243]
[1754254818081,9.52602505,3499.5,3499.4,0.4768]
[1754254818483,6.52602505,3499.5,3499.4,0.4768]
[1754254818662,6.52602505,3499.5,3499.4,0.6243]
[1754254819062,2.18402505,3499.5,3499.4,0.6243]
[1754254821791,2.18402505,3499.5,3499.4,0.4768]
[1754254821973,2.18402505,3499.5,3499.4,0.6243]
[1754254822174,2.18402505,3499.5,3499.4,0.002]
[1754254822511,7.64442755,3499.5,3499.4,0.002]
[1754254823068,7.21442755,3499.5,3499.4,0.002]
[1754254825804,2.18402505,3499.5,3499.4,0.002]
[1754254825983,6.52602505,3499.5,3499.4,0.4768]
[1754254826905,2.18402505,3499.5,3499.4,0.4768]
[1754254829106,2.18402505,3499.5,3499.4,0.002]
[1754254829316,2.65102505,3499.5,3499.4,0.002]
[1754254829676,3.85720756,3499.5,3499.4,0.002]
[1754254834795,6.85720756,3499.5,3499.4,0.002]
[1754254837525,2.18402505,3499.5,3499.4,0.002]
[1754254837762,2.18402505,3499.5,3499.4,0.5832]
[1754254838389,2.18402505,3499.5,3499.4,0.4357]
[1754254838593,2.18402505,3499.5,3499.4,0.7264]
[1754254839587,2.18402505,3499.5,3499.4,1.4528]
[1754254840427,2.18402505,3499.5,3499.4,0.1452]
[1754254840640,2.18402505,3499.5,3499.4,0.002]
[1754254840927,2.86952755,3499.5,3499.4,0.002]
[1754254841432,3.33032755,3499.5,3499.4,0.002]
[1754254842763,7.67132755,3499.5,3499.4,0.002]
[1754254845810,40.67132755,3499.5,3499.4,0.002]
[1754254846816,36.33032755,3499.5,3499.4,0.002]
[1754254847036,40.67132755,3499.5,3499.4,0.002]
[1754254852353,36.33032755,3499.5,3499.4,0.002]
[1754254852655,40.67132755,3499.5,3499.4,0.002]
[1754254861367,33.33032755,3499.5,3499.4,0.002]
[1754254861519,37.67132755,3499.5,3499.4,0.002]
[1754254864486,33.33032755,3499.5,3499.4,0.002]
[1754254864770,37.67132755,3499.5,3499.4,0.002]
[1754254866434,40.67132755,3499.5,3499.4,0.002]
[1754254869073,41.22132755,3499.5,3499.4,0.002]
[1754254870366,57.98294996,3499.5,3499.4,0.002]
[1754254872883,41.22132755,3499.5,3499.4,0.002]
[1754254874980,36.88032755,3499.5,3499.4,0.002]
[1754254875150,41.22132755,3499.5,3499.4,0.002]
[1754254877460,36.88032755,3499.5,3499.4,0.002]
[1754254877661,35.86952755,3499.5,3499.4,0.002]
[1754254877870,40.20612755,3499.5,3499.4,0.002]
[1754254881615,32.40252755,3499.5,3499.4,0.002]
[1754254881817,36.74352755,3499.5,3499.4,0.4533]
[1754254882485,35.40252755,3499.5,3499.4,0.4533]
[1754254882906,6.52502505,3499.5,3499.4,0.4533]
[1754254883213,6.52502505,3499.5,3499.4,0.6008]
[1754254883369,9.52502505,3499.5,3499.4,0.6008]
[1754254884501,9.52502505,3499.5,3499.4,0.4533]
[1754254884729,3.0,3499.4,3499.3,0.002]
[1754254885003,33.95260251,3499.4,3499.3,0.002]
[1754254885208,39.86554188,3499.4,3499.3,0.002]
[1754254885703,40.32814188,3499.4,3499.3,0.002]
[1754254886203,40.32814188,3499.4,3499.3,0.4533]
[1754254886204,5.91293937,3499.4,3499.3,0.4533]
[1754254886371,8.91293937,3499.4,3499.3,0.4533]
[1754254887503,8.91293937,3499.4,3499.3,0.002]
[1754254887896,9.37553937,3499.4,3499.3,0.002]
[1754254888091,39.37553937,3499.4,3499.3,0.002]
[1754254888496,42.24378644,3499.4,3499.3,0.002]
[1754254894611,41.78118644,3499.4,3499.3,0.002]
[1754254894811,43.60850327,3499.4,3499.3,0.002]
[1754254894989,43.99419523,3499.4,3499.3,0.002]
[1754254897322,43.23488644,3499.4,3499.3,0.002]
[1754254898629,38.89488644,3499.4,3499.3,0.002]
[1754254898930,43.23488644,3499.4,3499.3,0.002]
[1754254900314,43.60850327,3499.4,3499.3,0.002]
[1754254900883,43.99419523,3499.4,3499.3,0.002]
[1754254901819,51.04419523,3499.4,3499.3,0.002]
[1754254903811,33.55,3499.3,3499.2,0.002]
[1754254904038,58.42356948,3499.3,3499.2,0.002]
[1754254904234,60.08253427,3499.3,3499.2,0.002]
[1754254906219,67.13253427,3499.3,3499.2,0.002]
[1754254906621,67.34980788,3499.3,3499.2,0.002]
[1754254910154,67.35080788,3499.3,3499.2,0.002]
[1754254911451,66.97719105,3499.3,3499.2,0.002]
[1754254911940,38.86821186,3499.3,3499.2,0.5845]
[1754254912151,6.00296479,3499.3,3499.2,0.5845]
[1754254912449,9.00296479,3499.3,3499.2,0.5845]
[1754254918545,9.00296479,3499.3,3499.2,0.002]
[1754254918745,9.48706479,3499.3,3499.2,0.002]
[1754254918974,9.00296479,3499.3,3499.2,0.002]
[1754254919137,9.00396479,3499.3,3499.2,0.002]
[1754254919779,39.95287127,3499.3,3499.2,0.002]
[1754254920065,40.43697127,3499.3,3499.2,0.002]
[1754254920570,40.88137127,3499.3,3499.2,0.002]
[1754254920760,41.43137127,3499.3,3499.2,0.002]
[1754254923384,57.43368489,3499.3,3499.2,0.002]
[1754254926874,64.48368489,3499.3,3499.2,0.002]
[1754254931128,64.69334996,3499.3,3499.2,0.002]
[1754254933710,64.97974996,3499.3,3499.2,0.002]
[1754254947420,64.97674996,3499.3,3499.2,0.002]
[1754254947754,64.97674996,3499.3,3499.1,0.002]
[1754254947930,33.55,3499.1,3499.0,0.002]
[1754254948152,37.891,3499.1,3499.0,0.002]
[1754254948354,40.40748125,3499.1,3499.0,0.002]
[1754254948743,40.69388125,3499.1,3499.0,0.002]
[1754254948943,43.15961209,3499.1,3499.0,0.002]
[1754254949739,41.94471209,3499.1,3499.0,0.002]
[1754254950061,58.70222571,3499.1,3499.0,0.002]
[1754254951086,59.15622571,3499.1,3499.0,0.002]
[1754254953573,66.20622571,3499.1,3499.0,0.002]
[1754254956279,65.75222571,3499.1,3499.0,0.002]
[1754254956487,67.47122571,3499.1,3499.0,0.002]
[1754254956781,63.13022571,3499.1,3499.0,0.002]
[1754254956952,67.47122571,3499.1,3499.0,0.002]
[1754254957753,63.13022571,3499.1,3499.0,0.002]
[1754254957967,67.47122571,3499.1,3499.0,0.002]
[1754254958612,67.92522571,3499.1,3499.0,0.002]
[1754254960186,63.58422571,3499.1,3499.0,0.002]
[1754254960391,33.55,3499.0,3498.9,0.002]
[1754254960592,39.76270648,3499.0,3498.9,0.002]
[1754254960815,40.85062985,3499.0,3498.9,0.002]
[1754254960981,41.31942985,3499.0,3498.9,0.002]
[1754254965414,48.36942985,3499.0,3498.9,0.002]
[1754254965627,51.38342985,3499.0,3498.9,0.002]
[1754254965834,48.36942985,3499.0,3498.9,0.002]
[1754254967833,47.91542985,3499.0,3498.8,0.002]
[1754254968131,42.79156773,3498.9,3498.8,0.002]
[1754254970638,43.07796773,3498.9,3498.8,0.002]
[1754254971328,50.12796773,3498.9,3498.8,0.002]
[1754254971705,50.58196773,3498.9,3498.8,0.002]
[1754254972035,50.12796773,3498.9,3498.8,0.002]
[1754254973265,50.58196773,3498.9,3498.8,0.002]
[1754254974866,50.12796773,3498.9,3498.8,0.002]
[1754254980362,50.12696773,3498.9,3498.8,0.002]
[1754254984584,50.58676773,3498.9,3498.8,0.002]
[1754254985482,50.12696773,3498.9,3498.8,0.002]
[1754254985795,53.14096773,3498.9,3498.8,0.002]
[1754254985997,50.12696773,3498.9,3498.8,0.002]
[1754254987268,45.78696773,3498.9,3498.8,0.002]
[1754254987473,50.12696773,3498.9,3498.8,0.002]
[1754254992101,45.03176773,3498.9,3498.8,0.002]
[1754254992255,45.95352066,3498.9,3498.8,0.5832]
[1754254993184,45.95352066,3498.9,3498.8,0.4357]
[1754254995258,45.95352066,3498.9,3498.8,0.5832]
[1754254997161,41.61352066,3498.9,3498.8,0.5832]
[1754254997361,45.95352066,3498.9,3498.8,0.5832]
[1754254997960,64.82408135,3498.9,3498.8,0.002]
[1754254998166,65.86108135,3498.9,3498.8,0.002]
[1754255000903,66.32088135,3498.9,3498.8,0.002]
[1754255001074,66.60728135,3498.9,3498.8,0.002]
[1754255001865,3.55,3498.8,3498.5,0.002]
[1754255002106,33.55,3498.6,3498.5,0.002]
[1754255002296,37.889,3498.6,3498.5,0.002]
[1754255002495,40.00525561,3498.6,3498.5,0.002]
[1754255002896,47.05525561,3498.6,3498.5,0.002]
[1754255003095,47.60164586,3498.6,3498.5,0.002]
[1754255006386,48.06144586,3498.6,3498.5,0.002]
[1754255012925,48.05224586,3498.6,3498.5,0.002]
[1754255015323,48.42580653,3498.6,3498.5,0.002]
[1754255018026,47.11464586,3498.6,3498.5,0.002]
[1754255018860,42.77564586,3498.6,3498.5,0.002]
[1754255019059,47.11464586,3498.6,3498.5,0.002]
[1754255019244,47.11464586,3498.6,3498.5,0.448]
[1754255019424,42.77564586,3498.6,3498.5,0.002]
[1754255019626,47.11464586,3498.6,3498.5,0.002]
[1754255020922,42.22564586,3498.6,3498.5,0.002]
[1754255021249,42.22564586,3498.6,3498.5,0.448]
[1754255021250,41.67925561,3498.6,3498.5,0.448]
[1754255021421,46.01725561,3498.6,3498.5,0.448]
[1754255023020,38.67925561,3498.6,3498.5,0.448]
[1754255023259,43.01725561,3498.6,3498.5,0.5955]
[1754255023462,46.01725561,3498.6,3498.5,0.5955]
[1754255025059,38.67925561,3498.6,3498.5,0.5955]
[1754255025354,43.01725561,3498.6,3498.5,0.5955]
[1754255026927,46.01725561,3498.6,3498.5,0.448]
[1754255028451,46.01725561,3498.6,3498.5,0.5955]
[1754255029357,11.67925561,3498.6,3498.5,0.448]
[1754255029564,16.01725561,3498.6,3498.5,0.5955]
[1754255031231,16.01725561,3498.6,3498.5,0.448]
[1754255037078,18.55628117,3498.6,3498.5,0.002]
[1754255037286,48.55628117,3498.6,3498.5,0.002]
[1754255042759,48.55528117,3498.6,3498.5,0.002]
[1754255042970,48.10468117,3498.6,3498.5,0.002]
[1754255043153,48.56938117,3498.6,3498.5,0.002]
[1754255052286,44.23238117,3498.6,3498.5,0.002]
[1754255052803,43.28118117,3498.6,3498.5,0.002]
[1754255053113,46.01525561,3498.6,3498.5,0.002]
[1754255054204,46.51265561,3498.6,3498.5,0.002]
[1754255054709,59.88834714,3498.6,3498.5,0.002]
[1754255056269,60.35304714,3498.6,3498.5,0.002]
[1754255056671,46.97735561,3498.6,3498.5,0.002]
[1754255056895,49.84560268,3498.6,3498.5,0.002]
[1754255060014,46.01525561,3498.6,3498.5,0.002]
[1754255060419,46.01525561,3498.6,3498.5,0.4643]
[1754255061682,46.01525561,3498.6,3498.5,0.002]
[1754255062413,46.51265561,3498.6,3498.5,0.002]
[1754255062577,46.97735561,3498.6,3498.5,0.002]
[1754255062780,49.84560268,3498.6,3498.5,0.002]
[1754255064932,45.50960268,3498.6,3498.5,0.002]
[1754255065130,49.84560268,3498.6,3498.5,0.002]
[1754255065314,49.38090268,3498.6,3498.5,0.002]
[1754255069325,45.04490268,3498.6,3498.5,0.002]
[1754255069487,49.37990268,3498.6,3498.5,0.002]
[1754255071029,49.84280268,3498.6,3498.5,0.002]
[1754255071724,50.39280268,3498.6,3498.5,0.002]
[1754255093283,49.92990268,3498.6,3498.5,0.002]
[1754255094656,50.39280268,3498.6,3498.5,0.002]
[1754255102346,50.39280268,3498.6,3498.4,0.002]
[1754255102347,33.55,3498.5,3498.4,0.002]
[1754255102561,41.71484707,3498.5,3498.4,0.002]
[1754255102743,43.03550731,3498.5,3498.4,0.002]
[1754255102943,43.99810731,3498.5,3498.4,0.002]
[1754255104839,3.0,3498.3,3498.1,0.002]
[1754255105044,53.93247519,3498.2,3498.1,0.002]
[1754255105266,56.65722999,3498.2,3498.1,0.002]
[1754255108676,53.98750165,3498.2,3498.1,0.002]
[1754255109875,49.65350165,3498.2,3498.1,0.002]
[1754255110185,49.65350165,3498.2,3498.1,0.5816]
[1754255110186,9.5643548,3498.2,3498.1,0.5816]
[1754255110645,5.2303548,3498.2,3498.1,0.5816]
[1754255110986,9.5633548,3498.2,3498.1,0.5816]
[1754255111476,5.2303548,3498.2,3498.1,0.5816]
[1754255111696,2.2303548,3498.2,3498.1,0.4341]
[1754255111986,2.2303548,3498.2,3498.1,0.5816]
[1754255113465,2.2303548,3498.2,3498.1,0.7248]
[1754255114993,2.2303548,3498.2,3498.1,0.5816]